fUST/lending_fUST_20240825
["ID","MTS","AMOUNT","RATE_DAILY","PERIOD"]
[335827125,1724518243355,-500.0,0.00013698,2]
[335827126,1724518243365,-511.23922017,0.00013698,2]
[335827127,1724518243373,-500.0,0.00013698,2]
[335827128,1724518243383,-500.0,0.00013698,2]
[335827129,1724518243392,-500.0,0.00013698,2]
[335827130,1724518243401,-726.67,0.00013698,2]
[335827131,1724518243410,-509.93673624,0.00013698,2]
[335827132,1724518243419,-480.22502733,0.00013698,2]
[335827133,1724518243431,-1329.12,0.00013698,2]
[335827134,1724518243440,-500.0,0.00013698,2]
[335827135,1724518243449,-500.55269522,0.00013698,2]
[335827136,1724518243459,-1202.39,0.00013698,2]
[335827137,1724518243468,-500.0,0.00013698,2]
[335827138,1724518243477,-500.0,0.00013698,2]
[335827139,1724518243488,-500.0,0.00013698,2]
[335827140,1724518243497,-500.0,0.00013698,2]
[335827141,1724518243506,-500.0,0.00013698,2]
[335827142,1724518243516,-564.65068328,0.00013698,2]
[335827143,1724518243525,-500.0,0.00013698,2]
[335827144,1724518243537,-500.0,0.00013698,2]
[335827145,1724518243547,-717.71,0.00013698,2]
[335827146,1724518243559,-500.0,0.00013698,2]
[335827147,1724518243568,-500.68041564,0.00013698,2]
[335827148,1724518243578,-500.0,0.00013698,2]
[335827149,1724518243587,-500.0,0.00013698,2]
[335827150,1724518243596,-500.0,0.00013698,2]
[335827151,1724518243606,-516.01,0.00013698,2]
[335827152,1724518243616,-500.0,0.00013698,2]
[335827153,1724518243626,-500.0,0.00013698,2]
[335827154,1724518243635,-1282.42,0.00013698,2]
[335827155,1724518243647,-500.0,0.00013698,2]
[335827156,1724518243657,-500.0,0.00013698,2]
[335827157,1724518243668,-500.0,0.00013698,2]
[335827158,1724518243678,-500.0,0.00013698,2]
[335827159,1724518243693,-500.0,0.00013698,2]
[335827160,1724518243704,-500.0,0.00013698,2]
[335827161,1724518243714,-500.0,0.00013698,2]
[335827162,1724518243724,-1445.57,0.00013698,2]
[335827163,1724518243735,-840.77,0.00013698,2]
[335827164,1724518243746,-500.0,0.00013698,2]
[335827165,1724518243757,-525.54,0.00013698,2]
[335827166,1724518243766,-500.0,0.00013698,2]
[335827167,1724518243776,-500.0,0.00013698,2]
[335827168,1724518243785,-500.0,0.00013698,2]
[335827169,1724518243795,-500.0,0.00013698,2]
[335827170,1724518243805,-1185.5,0.00013698,2]
[335827171,1724518243815,-500.0,0.00013698,2]
[335827172,1724518243824,-500.0,0.00013698,2]
[335827173,1724518243834,-500.0,0.00013698,2]
[335827174,1724518243843,-500.0,0.00013698,2]
[335827175,1724518243854,-500.0,0.00013698,2]
[335827176,1724518243864,-500.0,0.00013698,2]
[335827177,1724518243873,-500.0,0.00013698,2]
[335827178,1724518243884,-442.44977797,0.00013698,2]
[335827179,1724518243893,-500.0,0.00013698,2]
[335827180,1724518243903,-1112.85,0.00013698,2]
[335827181,1724518243912,-503.4434288,0.00013698,2]
[335827182,1724518243922,-742.7,0.00013698,2]
[335827183,1724518243933,-500.0,0.00013698,2]
[335827184,1724518243943,-500.0,0.00013698,2]
[335827185,1724518243952,-500.0,0.00013698,2]
[335827186,1724518243961,-500.0,0.00013698,2]
[335827187,1724518243971,-810.31,0.00013698,2]
[335827188,1724518243981,-580.54,0.00013698,2]
[335827189,1724518243990,-718.91,0.00013698,2]
[335827190,1724518243999,-500.0,0.00013698,2]
[335827191,1724518244008,-500.0,0.00013698,2]
[335827192,1724518244018,-500.0,0.00013698,2]
[335827193,1724518244027,-500.0,0.00013698,2]
[335827194,1724518244036,-712.67,0.00013698,2]
[335827195,1724518244046,-1130.67,0.00013698,2]
[335827196,1724518244056,-500.0,0.00013698,2]
[335827197,1724518244065,-500.0,0.00013698,2]
[335827198,1724518244074,-152.88663537,0.00013698,2]
[335827199,1724518244085,-500.0,0.00013698,2]
[335827200,1724518244095,-500.0,0.00013698,2]
[335827201,1724518244105,-544.51,0.00013698,2]
[335827202,1724518244117,-500.0,0.00013698,2]
[335827203,1724518244127,-297.52832699,0.00013698,2]
[335827204,1724518244139,-500.0,0.00013698,2]
[335827205,1724518244150,-593.88,0.00013698,2]
[335827206,1724518244160,-500.0,0.00013698,2]
[335827207,1724518244170,-763.94,0.00013698,2]
[335827208,1724518244182,-761.47,0.00013698,2]
[335827209,1724518244194,-500.0,0.00013698,2]
[335827210,1724518244204,-2854.1,0.00013698,2]
[335827211,1724518244214,-701.22,0.00013698,2]
[335827212,1724518244225,-701.22,0.00013698,2]
[335827213,1724518244234,-701.22,0.00013698,2]
[335827214,1724518244246,-500.0,0.00013698,2]
[335827215,1724518244256,-701.22,0.00013698,2]
[335827216,1724518244266,-701.22,0.00013698,2]
[335827217,1724518244275,-701.22,0.00013698,2]
[335827218,1724518244284,-701.22,0.00013698,2]
[335827219,1724518244293,-701.22,0.00013698,2]
[335827220,1724518244302,-701.22,0.00013698,2]
[335827221,1724518244312,-701.22,0.00013698,2]
[335827222,1724518244321,-701.22,0.00013698,2]
[335827223,1724518244331,-701.22,0.00013698,2]
[335827224,1724518244340,-701.22,0.00013698,2]
[335827225,1724518244349,-500.0,0.00013698,2]
[335827226,1724518244359,-500.0,0.00013698,2]
[335827227,1724518244369,-701.22,0.00013698,2]
[335827228,1724518244378,-701.22,0.00013698,2]
[335827229,1724518244388,-701.22,0.00013698,2]
[335827230,1724518244398,-599.17486468,0.00013698,2]
[335827482,1724518249828,341.50733323,0.0001211,2]
[335827483,1724518253079,2234.62252193,0.0001205,2]
[335827484,1724518253104,22665.37747807,0.0001205,2]
[335827485,1724518255432,762.21,0.00010959,2]
[335827486,1724518258438,1093.49344924,0.0001211,2]
[335827487,1724518266076,635.18,0.00010959,2]
[335827488,1724518276486,529.32,0.00010959,2]
[335827489,1724518287306,441.1,0.00010959,2]
[335827491,1724518297841,367.58,0.00010959,2]
[335827492,1724518306210,6747.89857333,0.00010959,2]
[335827493,1724518308392,306.32,0.00010959,2]
[335827494,1724518312518,9996.87643044,0.00010959,2]
[335827495,1724518318980,255.26,0.00010959,2]
[335827498,1724518324756,2112.50283852,0.00010959,2]
[335827499,1724518327592,185.77386313,0.00010959,2]
[335827500,1724518329712,212.72,0.00010959,2]
[335827501,1724518336180,939.08236877,0.00010959,2]
[335827502,1724518340176,177.27,0.00010959,2]
[335827503,1724518343827,158.97719776,0.00010959,2]
[335827504,1724518350718,886.35,0.00010959,2]
[335827506,1724518400229,6747.89857333,0.00010959,2]
[335827507,1724518418831,405.40975806,0.00010959,2]
[335827510,1724518482230,6742.39560198,0.00010959,2]
[335827522,1724518822977,11186.8155581,0.0001185,2]
[335827523,1724518843841,3004.1495679,0.00011893,2]
[335827524,1724518852465,250.0,0.00011909,2]
[335827525,1724518852934,250.0,0.00011942,2]
[335827526,1724518853143,250.0,0.00011975,2]
[335827527,1724518853366,250.0,0.00012007,2]
[335827528,1724518853584,250.0,0.0001204,2]
[335827529,1724518853802,250.0,0.00012073,2]
[335827530,1724518854059,250.0,0.00012105,2]
[335827539,1724519106439,1500.0,0.00011999,2]
[335827542,1724519197246,16713.05098664,0.00011999,2]
[335827543,1724519226336,-250.0,0.00012138,2]
[335827544,1724519226358,-300.0,0.00012162,2]
[335827545,1724519226378,-255.65971906,0.00012162,2]
[335827546,1724519227361,-44.34028094,0.00012162,2]
[335827547,1724519227383,-1101.17331775,0.00012163,2]
[335827548,1724519271204,-385.59896362,0.0001212,2]
[335827549,1724519276595,-6631.21006394,0.0001212,2]
[335827550,1724519276617,-309.11901389,0.0001212,2]
[335827551,1724519276640,-250.0,0.00012171,2]
[335827552,1724519276661,-167.107483,0.00012201,2]
[335827553,1724519276685,-250.0,0.00012203,2]
[335827554,1724519276706,-250.0,0.00012236,2]
[335827555,1724519276727,-167.107483,0.00012262,2]
[335827556,1724519276749,-250.0,0.00012269,2]
[335827557,1724519276771,-250.0,0.00012301,2]
[335827558,1724519276793,-250.0,0.00012334,2]
[335827559,1724519276814,-9664.212107,0.00012356,2]
[335827560,1724519276837,-22006.00212483,0.00012356,2]
[335827561,1724519276859,-440.49656002,0.00012356,2]
[335827562,1724519276880,-2282.92421799,0.00012356,3]
[335827563,1724519276901,-250.0,0.00012367,2]
[335827564,1724519276923,-250.0,0.00012399,2]
[335827565,1724519276946,-250.0,0.00012432,2]
[335827566,1724519276969,-250.0,0.00012465,2]
[335827567,1724519276989,-250.0,0.00012497,2]
[335827568,1724519277011,-250.0,0.0001253,2]
[335827569,1724519277035,-1614.23476324,0.00012551,2]
[335827570,1724519277055,-934.26607432,0.00012551,2]
[335827571,1724519277076,-409.2733729,0.000126,2]
[335827572,1724519277096,-207.7300879,0.000126,2]
[335827573,1724519277118,-155.79216523,0.00012689,2]
[335827574,1724519277141,-285.80053318,0.00012689,2]
[335827575,1724519277164,-1979.8305793,0.00012779,2]
[335827576,1724519277184,-3094.20831595,0.00012779,2]
[335827577,1724519277205,-665.66397173,0.00012782,2]
[335827578,1724519277225,-2129.03639097,0.00012782,2]
[335827579,1724519277247,-2129.03639097,0.00012782,2]
[335827580,1724519277268,-453.932561,0.00012877,2]
[335827581,1724519277289,-1767.29008818,0.00012898,2]
[335827582,1724519277309,-680.78662044,0.00012934,2]
[335827583,1724519277330,-883.32812457,0.00012971,2]
[335827584,1724519277351,-223.54518659,0.00012971,2]
[335827585,1724519277372,-376.8026316,0.00012985,2]
[335827586,1724519277392,-602.18885266,0.00012985,2]
[335827587,1724519277413,-521.35824671,0.00012985,2]
[335827588,1724519277434,-404.47284307,0.00012985,2]
[335827589,1724519277454,-154.72922386,0.00012985,2]
[335827590,1724519277475,-569.85049545,0.00012985,2]
[335827591,1724519277496,-166.26547612,0.00012985,2]
[335827592,1724519277516,-154.8961714,0.00012985,2]
[335827593,1724519277537,-346.46491659,0.00012985,2]
[335827594,1724519277557,-180.41738215,0.00012989,2]
[335827595,1724519277578,-245.0,0.00012989,2]
[335827596,1724519277599,-215.45082928,0.00012989,2]
[335827597,1724519277620,-160.93233548,0.00012989,2]
[335827598,1724519277641,-156.92948105,0.00012989,2]
[335827599,1724519277662,-695.14803561,0.00012989,2]
[335827600,1724519277683,-160.46171883,0.00012989,2]
[335827601,1724519277702,-320.30409158,0.00012989,2]
[335827602,1724519277723,-154.76012181,0.00012989,2]
[335827603,1724519277745,-154.76012181,0.00012989,2]
[335827604,1724519277767,-544.2854961,0.00012989,2]
[335827605,1724519277788,-155.34423056,0.00012991,2]
[335827606,1724519277809,-155.48534041,0.00012991,2]
[335827607,1724519277830,-196.83090407,0.00012991,2]
[335827608,1724519277853,-154.94544489,0.00012991,2]
[335827609,1724519277874,-493.36312925,0.00012991,2]
[335827610,1724519277894,-155.07432915,0.00012991,2]
[335827611,1724519277915,-296.9760015,0.00012991,2]
[335827612,1724519277938,-154.85281567,0.00012991,2]
[335827613,1724519277960,-500.34461698,0.00012999,2]
[335827614,1724519277982,-157.17582995,0.00012999,2]
[335827615,1724519278004,-862.94176999,0.00013,2]
[335827616,1724519278028,-500.0,0.00013,2]
[335827617,1724519278049,-174.92435112,0.00013025,2]
[335827618,1724519278071,-500.0,0.00013179,2]
[335827619,1724519278092,-211.57990216,0.00013333,2]
[335827620,1724519278113,-420.0,0.00013349,2]
[335827621,1724519278136,-420.0,0.00013378,2]
[335827622,1724519278158,-1000.0,0.00013382,2]
[335827623,1724519278181,-1254.39060242,0.00013443,2]
[335827624,1724519278205,-293.2909788,0.00013453,2]
[335827625,1724519278226,-1000.0,0.00013474,2]
[335827626,1724519278252,-110477.533728,0.00013486,2]
[335827627,1724519278275,-206.7090212,0.00013491,2]
[335827628,1724519278295,-997.64976914,0.00013496,2]
[335827629,1724519278316,-300.0,0.00013497,2]
[335827630,1724519278338,-154.72922386,0.00013497,2]
[335827631,1724519278360,-154.72922386,0.00013497,2]
[335827632,1724519278381,-3600.03166857,0.00013512,2]
[335827633,1724519367113,-3904.6353711,0.0001212,2]
[335827634,1724519368171,-5759.5767359,0.0001212,2]
[335827783,1724519437970,-250.3521509,0.00012411,2]
[335827785,1724519437979,-1912.58026713,0.00012551,2]
[335827786,1724519437990,-239.033622,0.00012602,2]
[335827788,1724519438000,-154.72922386,0.00012985,2]
[335827790,1724519438010,-2000.0,0.00013386,2]
[335827792,1724519438020,-413.88106461,0.00013496,2]
[335827794,1724519438030,-155.21389728,0.00013497,2]
[335827797,1724519438041,-300.0,0.00013511,2]
[335827798,1724519438050,-5954.68997356,0.00013512,2]
[335827801,1724519438060,-500.0,0.00013518,2]
[335827802,1724519438070,-153.0,0.00013529,2]
[335827803,1724519438083,-153.0,0.00013529,2]
[335827804,1724519438092,-153.0,0.00013529,2]
[335827805,1724519438102,-153.0,0.00013529,2]
[335827806,1724519438112,-153.0,0.00013529,2]
[335827807,1724519438122,-827.86884761,0.0001353,2]
[335827808,1724519438132,-153.0,0.00013531,2]
[335827809,1724519438141,-153.0,0.00013531,2]
[335827810,1724519438152,-153.0,0.00013531,2]
[335827811,1724519438162,-153.0,0.00013531,2]
[335827812,1724519438171,-153.0,0.00013531,2]
[335827813,1724519438180,-153.0,0.00013531,2]
[335827814,1724519438189,-153.0,0.00013531,2]
[335827815,1724519438198,-153.0,0.00013531,2]
[335827816,1724519438208,-153.0,0.00013531,2]
[335827817,1724519438217,-153.0,0.00013531,2]
[335827818,1724519438226,-153.0,0.00013531,2]
[335827819,1724519438236,-153.0,0.00013531,2]
[335827820,1724519438246,-153.0,0.00013531,2]
[335827821,1724519438256,-827.86884759,0.00013547,2]
[335827822,1724519438265,-827.86884759,0.00013564,2]
[335827823,1724519438276,-150.0,0.00013577,2]
[335827824,1724519438288,-827.86884759,0.00013581,2]
[335827825,1724519438299,-151.919,0.00013594,2]
[335827826,1724519438309,-522.0,0.00013594,2]
[335827827,1724519438319,-2897.9404079,0.00013597,2]
[335827828,1724519438331,-827.86884759,0.00013598,2]
[335827829,1724519438342,-40000.0,0.00013598,2]
[335827830,1724519438353,-150.112233,0.000136,2]
[335827831,1724519438364,-150.112233,0.000136,2]
[335827832,1724519438375,-150.112233,0.000136,2]
[335827833,1724519438385,-150.112233,0.000136,2]
[335827834,1724519438395,-150.112233,0.000136,2]
[335827835,1724519438404,-150.112233,0.000136,2]
[335827836,1724519438413,-150.112233,0.000136,2]
[335827837,1724519438423,-264.95781,0.000136,2]
[335827838,1724519438432,-1000.0,0.00013612,2]
[335827839,1724519438441,-104953.657042,0.0001362,2]
[335827840,1724519438450,-243.2101,0.0001363,2]
[335827841,1724519438460,-5720.57521366,0.00013646,2]
[335827842,1724519438469,-1000.0,0.00013656,2]
[335827843,1724519438478,-1000.0,0.00013662,2]
[335827844,1724519438487,-233.53534236,0.0001367,2]
[335827845,1724519438497,-312.01579195,0.00013673,2]
[335827846,1724519438506,-168.01711624,0.00013673,2]
[335827847,1724519438516,-500.0,0.00013673,2]
[335827848,1724519438525,-350.02199508,0.00013673,2]
[335827849,1724519438534,-500.0,0.00013673,2]
[335827850,1724519438542,-170.27890073,0.00013673,2]
[335827851,1724519438552,-500.0,0.00013673,2]
[335827852,1724519438562,-500.0,0.00013673,2]
[335827853,1724519438572,-500.0,0.00013673,2]
[335827854,1724519438582,-600.0,0.00013676,2]
[335827855,1724519438594,-155.0,0.0001368,2]
[335827856,1724519438604,-270134.32448245,0.00013688,2]
[335827881,1724519440107,-239.033622,0.00012637,2]
[335827883,1724519440119,-239.033622,0.00012671,2]
[335827885,1724519440132,-239.033622,0.00012706,2]
[335827887,1724519440145,-239.033622,0.0001274,2]
[335827889,1724519440157,-239.033622,0.00012775,2]
[335827891,1724519440168,-239.033622,0.0001281,2]
[335827893,1724519440178,-239.033622,0.00012844,2]
[335827895,1724519440188,-239.033622,0.00012879,2]
[335827896,1724519440198,-65.3612073,0.00012913,2]
[335827898,1724519440210,-173.6724147,0.00012913,2]
[335827900,1724519440220,-43845.61372782,0.00013688,2]
[335827905,1724519440242,-239.033622,0.00012948,2]
[335827908,1724519440251,-881.03291473,0.00013688,2]
[335827910,1724519440261,-209.7598205,0.00013697,2]
[335827912,1724519440271,-2721.46247055,0.00013697,2]
[335827914,1724519440280,-209.7598205,0.00013697,2]
[335827916,1724519440290,-321.6055419,0.00013697,2]
[335827918,1724519440299,-8925.5237881,0.00013697,2]
[335827921,1724519440308,-155.12815248,0.00013698,2]
[335827922,1724519440317,-500.0,0.00013698,2]
[335827923,1724519440327,-500.0,0.00013698,2]
[335827924,1724519440336,-500.0,0.00013698,2]
[335827925,1724519440346,-500.0,0.00013698,2]
[335827926,1724519440355,-500.0,0.00013698,2]
[335827927,1724519440364,-500.0,0.00013698,2]
[335827928,1724519440375,-630.23123774,0.00013698,2]
[335827929,1724519440385,-500.0,0.00013698,2]
[335827930,1724519440395,-500.0,0.00013698,2]
[335827931,1724519440407,-501.33411364,0.00013698,2]
[335827932,1724519440418,-500.0,0.00013698,2]
[335827933,1724519440428,-500.0,0.00013698,2]
[335827934,1724519440438,-830.7,0.00013698,2]
[335827935,1724519440448,-500.0,0.00013698,2]
[335827936,1724519440457,-620.54,0.00013698,2]
[335827937,1724519440466,-513.24810199,0.00013698,2]
[335827938,1724519440476,-547.22665791,0.00013698,2]
[335827939,1724519440486,-500.0,0.00013698,2]
[335827940,1724519440495,-297.52832699,0.00013698,2]
[335827941,1724519440504,-795.72,0.00013698,2]
[335827942,1724519440513,-500.0,0.00013698,2]
[335827943,1724519440523,-500.0,0.00013698,2]
[335827944,1724519440533,-500.0,0.00013698,2]
[335827945,1724519440542,-500.0,0.00013698,2]
[335827946,1724519440552,-500.0,0.00013698,2]
[335827947,1724519440562,-500.0,0.00013698,2]
[335827948,1724519440571,-500.0,0.00013698,2]
[335827949,1724519440580,-601.53830752,0.00013698,2]
[335827950,1724519440590,-579.2,0.00013698,2]
[335827951,1724519440601,-500.0,0.00013698,2]
[335827952,1724519440611,-500.0,0.00013698,2]
[335827953,1724519440622,-662.42,0.00013698,2]
[335827954,1724519440632,-569.27,0.00013698,2]
[335827955,1724519440642,-500.0,0.00013698,2]
[335827956,1724519440651,-500.0,0.00013698,2]
[335827957,1724519440661,-502.9669734,0.00013698,2]
[335827958,1724519440670,-285.92282374,0.00013698,2]
[335827959,1724519440679,-500.0,0.00013698,2]
[335827960,1724519440689,-500.0,0.00013698,2]
[335827961,1724519440702,-616.21891281,0.00013698,2]
[335827962,1724519440712,-648.19,0.00013698,2]
[335827963,1724519440722,-500.0,0.00013698,2]
[335827964,1724519440731,-500.0,0.00013698,2]
[335827965,1724519440742,-500.0,0.00013698,2]
[335827966,1724519440751,-317.59539575,0.00013698,2]
[335827967,1724519440761,-500.0,0.00013698,2]
[335827968,1724519440771,-500.0,0.00013698,2]
[335827969,1724519440780,-596.72,0.00013698,2]
[335827970,1724519440789,-500.0,0.00013698,2]
[335827971,1724519440799,-500.0,0.00013698,2]
[335827972,1724519440808,-520.07231296,0.00013698,2]
[335827973,1724519440818,-500.0,0.00013698,2]
[335827974,1724519440828,-500.0,0.00013698,2]
[335827975,1724519440837,-500.0,0.00013698,2]
[335827976,1724519440846,-500.0,0.00013698,2]
[335827977,1724519440856,-503.11997067,0.00013698,2]
[335827978,1724519440865,-500.0,0.00013698,2]
[335827979,1724519440874,-211.5927313,0.00013698,2]
[335827980,1724519440883,-500.0,0.00013698,2]
[335827981,1724519440893,-500.0,0.00013698,2]
[335827982,1724519440902,-500.0,0.00013698,2]
[335827983,1724519440913,-500.0,0.00013698,2]
[335827984,1724519440922,-500.0,0.00013698,2]
[335827985,1724519440932,-500.0,0.00013698,2]
[335827986,1724519440941,-500.0,0.00013698,2]
[335827987,1724519440950,-2107.98,0.00013698,2]
[335827988,1724519440960,-643.50200613,0.00013698,2]
[335827989,1724519440969,-534.63057297,0.00013698,2]
[335827990,1724519440979,-500.0,0.00013698,2]
[335827991,1724519440990,-500.0,0.00013698,2]
[335827992,1724519441002,-500.0,0.00013698,2]
[335827993,1724519441012,-500.0,0.00013698,2]
[335827994,1724519441021,-500.0,0.00013698,2]
[335827995,1724519441031,-500.0,0.00013698,2]
[335827996,1724519441040,-500.0,0.00013698,2]
[335827997,1724519441050,-500.0,0.00013698,2]
[335827998,1724519441059,-500.0,0.00013698,2]
[335827999,1724519441069,-720.16,0.00013698,2]
[335828000,1724519441081,-500.0,0.00013698,2]
[335828001,1724519441090,-512.44720167,0.00013698,2]
[335828002,1724519441100,-500.0,0.00013698,2]
[335828003,1724519441109,-500.0,0.00013698,2]
[335828004,1724519441119,-500.0,0.00013698,2]
[335828005,1724519441128,-500.0,0.00013698,2]
[335828006,1724519441138,-500.0,0.00013698,2]
[335828007,1724519441149,-500.0,0.00013698,2]
[335828008,1724519441161,-501.67479403,0.00013698,2]
[335828009,1724519441171,-500.0,0.00013698,2]
[335828010,1724519441180,-416.90936469,0.00013698,2]
[335828011,1724519441189,-500.0,0.00013698,2]
[335828012,1724519441199,-500.0,0.00013698,2]
[335828013,1724519441209,-500.0,0.00013698,2]
[335828014,1724519441219,-500.0,0.00013698,2]
[335828015,1724519441228,-500.0,0.00013698,2]
[335828016,1724519441237,-500.0,0.00013698,2]
[335828017,1724519441247,-193.80537047,0.00013698,2]
[335828018,1724519441257,-500.0,0.00013698,2]
[335828019,1724519441266,-500.00000001,0.00013698,2]
[335828020,1724519441276,-500.0,0.00013698,2]
[335828021,1724519441285,-500.0,0.00013698,2]
[335828022,1724519441295,-500.0,0.00013698,2]
[335828023,1724519441304,-500.0,0.00013698,2]
[335828024,1724519441314,-500.0,0.00013698,2]
[335828025,1724519441323,-500.0,0.00013698,2]
[335828026,1724519441333,-500.0,0.00013698,2]
[335828027,1724519441343,-510.53305999,0.00013698,2]
[335828028,1724519441352,-786.75,0.00013698,2]
[335828029,1724519441361,-500.0,0.00013698,2]
[335828030,1724519441371,-500.0,0.00013698,2]
[335828031,1724519441380,-500.0,0.00013698,2]
[335828032,1724519441390,-500.0,0.00013698,2]
[335828033,1724519441399,-687.44,0.00013698,2]
[335828034,1724519441410,-500.0,0.00013698,2]
[335828035,1724519441419,-500.0,0.00013698,2]
[335828036,1724519441429,-500.0,0.00013698,2]
[335828037,1724519441439,-500.0,0.00013698,2]
[335828038,1724519441450,-500.0,0.00013698,2]
[335828039,1724519441461,-500.0,0.00013698,2]
[335828040,1724519441471,-500.0,0.00013698,2]
[335828041,1724519441482,-500.0,0.00013698,2]
[335828042,1724519441492,-500.0,0.00013698,2]
[335828043,1724519441502,-500.0,0.00013698,2]
[335828044,1724519441513,-500.0,0.00013698,2]
[335828045,1724519441524,-500.0,0.00013698,2]
[335828046,1724519441535,-500.0,0.00013698,2]
[335828047,1724519441545,-500.0,0.00013698,2]
[335828048,1724519441555,-500.0,0.00013698,2]
[335828049,1724519441565,-516.55611504,0.00013698,2]
[335828050,1724519441575,-613.11,0.00013698,2]
[335828051,1724519441584,-500.0,0.00013698,2]
[335828052,1724519441607,-500.0,0.00013698,2]
[335828053,1724519441619,-500.0,0.00013698,2]
[335828054,1724519441630,-500.0,0.00013698,2]
[335828055,1724519441642,-500.0,0.00013698,2]
[335828056,1724519441654,-500.0,0.00013698,2]
[335828057,1724519441666,-500.0,0.00013698,2]
[335828058,1724519441676,-500.0,0.00013698,2]
[335828059,1724519441686,-500.0,0.00013698,2]
[335828060,1724519441695,-500.0,0.00013698,2]
[335828061,1724519441705,-602.66,0.00013698,2]
[335828062,1724519441715,-500.0,0.00013698,2]
[335828063,1724519441726,-500.0,0.00013698,2]
[335828064,1724519441736,-500.0,0.00013698,2]
[335828065,1724519441746,-500.0,0.00013698,2]
[335828066,1724519441756,-500.0,0.00013698,2]
[335828067,1724519441766,-726.68,0.00013698,2]
[335828068,1724519441776,-500.0,0.00013698,2]
[335828069,1724519441788,-500.0,0.00013698,2]
[335828070,1724519441800,-500.0,0.00013698,2]
[335828071,1724519441811,-500.0,0.00013698,2]
[335828072,1724519441823,-500.0,0.00013698,2]
[335828073,1724519441835,-500.0,0.00013698,2]
[335828074,1724519441846,-500.0,0.00013698,2]
[335828075,1724519441857,-500.0,0.00013698,2]
[335828076,1724519441868,-500.0,0.00013698,2]
[335828077,1724519441878,-347.80124301,0.00013698,2]
[335828078,1724519441890,-588.43,0.00013698,2]
[335828079,1724519441901,-908.74,0.00013698,2]
[335828080,1724519441912,-500.0,0.00013698,2]
[335828081,1724519441922,-500.0,0.00013698,2]
[335828082,1724519441932,-500.0,0.00013698,2]
[335828083,1724519441943,-943.47,0.00013698,2]
[335828084,1724519441954,-500.0,0.00013698,2]
[335828085,1724519441964,-500.0,0.00013698,2]
[335828086,1724519441974,-500.0,0.00013698,2]
[335828087,1724519441985,-500.0,0.00013698,2]
[335828088,1724519441995,-500.0,0.00013698,2]
[335828089,1724519442005,-500.0,0.00013698,2]
[335828090,1724519442016,-500.0,0.00013698,2]
[335828091,1724519442026,-500.0,0.00013698,2]
[335828092,1724519442036,-500.0,0.00013698,2]
[335828093,1724519442047,-260.0,0.00013698,2]
[335828094,1724519442057,-500.0,0.00013698,2]
[335828095,1724519442067,-568.21022219,0.00013698,2]
[335828096,1724519442083,-258.0,0.00013698,2]
[335828097,1724519442093,-500.0,0.00013698,2]
[335828098,1724519442105,-588.95,0.00013698,2]
[335828099,1724519442117,-701.22,0.00013698,2]
[335828100,1724519442128,-500.0,0.00013698,2]
[335828101,1724519442140,-701.22,0.00013698,2]
[335828102,1724519442154,-701.22,0.00013698,2]
[335828103,1724519442166,-500.0,0.00013698,2]
[335828104,1724519442176,-701.22,0.00013698,2]
[335828105,1724519442186,-701.22,0.00013698,2]